bitfinex/quotes_BTCUSD_20241025
["timestamp","ask_amount","ask_price","bid_price","bid_amount"]
[1729867451114,0.56877623,68330.0,68329.0,0.274427]
[1729867451334,0.58499765,68330.0,68329.0,0.274427]
[1729867451555,0.60799765,68330.0,68329.0,0.000827]
[1729867452210,0.269367,68321.0,68320.0,0.077]
[1729867452435,0.59179523,68321.0,68320.0,0.077]
[1729867453023,0.246376,68317.0,68316.0,9e-05]
[1729867453145,0.39687981,68317.0,68316.0,9e-05]
[1729867453373,0.54388253,68317.0,68316.0,9e-05]
[1729867453590,0.41987981,68317.0,68316.0,9e-05]
[1729867454692,0.39687981,68317.0,68316.0,9e-05]
[1729867454908,0.41368932,68317.0,68316.0,9e-05]
[1729867455129,0.41372932,68317.0,68316.0,9e-05]
[1729867457539,0.26735332,68317.0,68312.0,0.00069509]
[1729867457765,0.41830942,68313.0,68312.0,0.00069509]
[1729867457991,0.56881323,68313.0,68312.0,0.00069509]
[1729867460313,0.59181323,68313.0,68312.0,0.00069509]
[1729867461868,0.56881323,68313.0,68312.0,0.00069509]
[1729867462364,0.91013122,68313.0,68312.0,0.00069509]
[1729867462582,0.76373765,68313.0,68312.0,0.00069509]
[1729867463016,0.1,68312.0,68305.0,0.0814]
[1729867463231,0.41832442,68306.0,68305.0,0.0814]
[1729867463467,0.56882823,68306.0,68305.0,0.0814]
[1729867463683,0.146404,68304.0,68303.0,0.000828]
[1729867463896,0.41990781,68304.0,68303.0,0.000828]
[1729867464556,0.39690781,68304.0,68303.0,0.000828]
[1729867465671,0.246404,68304.0,68303.0,0.000828]
[1729867465920,0.246404,68304.0,68303.0,0.274628]
[1729867466263,0.246444,68304.0,68303.0,0.269628]
[1729867466479,0.146444,68304.0,68303.0,0.284628]
[1729867466965,4e-05,68304.0,68303.0,0.284628]
[1729867467179,0.146444,68304.0,68303.0,0.784628]
[1729867467404,0.146444,68304.0,68303.0,0.79122412]
[1729867467664,0.146444,68304.0,68303.0,0.77622412]
[1729867467875,0.246444,68304.0,68303.0,0.77622412]
[1729867469216,0.246444,68304.0,68303.0,0.78622412]
[1729867469433,0.146444,68304.0,68303.0,0.79122412]
[1729867470358,0.146444,68304.0,68303.0,0.78622412]
[1729867470584,0.39694781,68304.0,68303.0,0.77622412]
[1729867471694,0.51239403,68304.0,68303.0,0.77622412]
[1729867471922,0.39694781,68304.0,68303.0,0.58752412]
[1729867472147,0.39694781,68304.0,68303.0,0.50742412]
[1729867472148,0.41994781,68304.0,68303.0,0.50742412]
[1729867473268,0.146421,68296.0,68295.0,5.3e-07]
[1729867473485,0.76377365,68296.0,68295.0,5.3e-07]
[1729867473708,0.76577365,68296.0,68295.0,5.3e-07]
[1729867474205,0.76377365,68296.0,68295.0,5.3e-07]
[1729867474452,0.80121026,68296.0,68295.0,5.3e-07]
[1729867474689,0.95171407,68296.0,68295.0,5.3e-07]
[1729867474922,0.80121026,68296.0,68295.0,5.3e-07]
[1729867475631,0.80121026,68296.0,68277.0,0.22022066]
[1729867475632,0.002,68294.0,68277.0,0.22022066]
[1729867475877,0.44137142,68284.0,68277.0,0.22022066]
[1729867476122,0.246447,68284.0,68277.0,0.22022066]
[1729867476366,0.41837142,68284.0,68282.0,0.1842]
[1729867477307,0.56887523,68284.0,68282.0,0.1842]
[1729867479413,0.59187523,68284.0,68282.0,0.1842]
[1729867481287,0.56887523,68284.0,68282.0,0.1842]
[1729867482017,0.39695081,68284.0,68282.0,0.1842]
[1729867482253,0.41837142,68284.0,68283.0,0.079728]
[1729867483392,0.246447,68284.0,68283.0,0.079728]
[1729867483633,0.246447,68284.0,68283.0,0.084728]
[1729867483892,0.146447,68284.0,68283.0,0.285228]
[1729867485925,0.292874,68289.0,68288.0,0.2807]
[1729867486180,0.43931,68289.0,68288.0,0.2857]
[1729867487121,0.146436,68289.0,68288.0,0.2857]
[1729867487345,0.292837,68298.0,68297.0,0.005]
[1729867487346,0.146417,68298.0,68297.0,0.005]
[1729867487828,0.146417,68298.0,68297.0,0.00477709]
[1729867488269,0.292812,68303.0,68299.0,0.00477709]
[1729867488521,0.292802,68306.0,68301.0,0.005]
[1729867488770,0.36662666,68303.0,68302.0,0.0786]
[1729867489069,0.292802,68306.0,68302.0,0.0786]
[1729867489306,0.146406,68303.0,68302.0,0.0786]
[1729867489745,0.146444,68304.0,68302.0,0.0786]
[1729867490204,4e-05,68304.0,68303.0,0.1944]
[1729867490469,4e-05,68304.0,68303.0,0.28250491]
[1729867490691,0.146444,68304.0,68303.0,0.27457709]
[1729867490904,4e-05,68304.0,68303.0,0.27957709]
[1729867491151,0.146444,68304.0,68303.0,0.27957709]
[1729867492816,0.46887223,68304.0,68303.0,0.2648]
[1729867493056,0.46887223,68304.0,68303.0,0.0754]
[1729867494752,0.29283,68299.0,68297.0,0.0813]
[1729867494967,0.46884523,68298.0,68297.0,0.0863]
[1729867495183,0.46884523,68298.0,68297.0,0.0813]
[1729867495414,0.46884523,68298.0,68297.0,0.0863]
[1729867495860,0.29692081,68298.0,68297.0,0.0863]
[1729867496075,0.46884523,68298.0,68297.0,0.0863]
[1729867497423,0.02304,68304.0,68297.0,0.0863]
[1729867497424,4e-05,68304.0,68299.0,0.00477709]
[1729867497640,0.14641,68301.0,68300.0,0.00477709]
[1729867498138,0.14641,68301.0,68300.0,0.08917709]
[1729867498402,4e-05,68304.0,68303.0,0.27927709]
[1729867498633,4e-05,68304.0,68303.0,0.2872051]
[1729867498862,4e-05,68304.0,68303.0,0.28427709]
[1729867500478,8e-05,68304.0,68303.0,0.28427709]
[1729867500956,0.146484,68304.0,68303.0,0.28427709]
[1729867502986,8e-05,68304.0,68303.0,0.28427709]
[1729867503463,8e-05,68304.0,68303.0,0.28720492]
[1729867503958,8e-05,68304.0,68303.0,0.28427709]
[1729867504514,8e-05,68304.0,68303.0,0.43361069]
[1729867504596,8e-05,68304.0,68303.0,0.28427709]
[1729867504819,0.001654,68312.0,68311.0,0.01477709]
[1729867505056,0.001654,68312.0,68311.0,0.29037709]
[1729867506966,0.001694,68317.0,68311.0,0.29037709]
[1729867506967,0.001694,68317.0,68316.0,0.44590151]
[1729867507220,0.001694,68317.0,68316.0,0.59227951]
[1729867507472,0.001694,68317.0,68316.0,0.59427951]
[1729867507695,0.146388,68330.0,68329.0,0.28287709]
[1729867507929,0.146388,68330.0,68329.0,0.28787709]
[1729867508155,0.146388,68330.0,68329.0,0.2731]
[1729867508393,0.146388,68330.0,68329.0,0.28287709]
[1729867508609,0.146388,68330.0,68329.0,0.28787709]
[1729867509048,4e-05,68330.0,68329.0,0.28787709]
[1729867509791,0.21557593,68360.0,68346.0,0.005]
[1729867510012,0.14631,68348.0,68347.0,0.26857709]
[1729867510232,0.14631,68348.0,68347.0,0.27357709]
[1729867510953,0.29681381,68348.0,68347.0,0.26857709]
[1729867511186,0.438946,68346.0,68345.0,0.00477709]
[1729867511407,0.76137423,68346.0,68345.0,0.00477709]
[1729867512123,0.61506023,68346.0,68345.0,0.00477709]
[1729867512609,0.146316,68345.0,68344.0,0.00256337]
[1729867513304,0.1,68355.0,68345.0,0.005]
[1729867513305,0.292604,68352.0,68345.0,0.005]
[1729867513549,0.146311,68348.0,68347.0,0.005]
[1729867514287,0.146311,68348.0,68347.0,0.2002]
[1729867514520,0.292607,68351.0,68347.0,0.2002]
[1729867514521,4e-05,68353.0,68352.0,0.005]
[1729867514965,0.146301,68352.0,68351.0,0.00256337]
[1729867515190,0.146301,68352.0,68349.0,0.00256337]
[1729867515430,0.14631,68348.0,68347.0,0.27476337]
[1729867515680,0.14631,68348.0,68347.0,0.27976337]
[1729867516615,0.14631,68348.0,68347.0,0.27476337]
[1729867516845,0.14635,68348.0,68347.0,0.27976337]
[1729867517856,4e-05,68348.0,68347.0,0.27954046]
[1729867518333,0.14635,68348.0,68347.0,0.27954046]
[1729867519493,4e-05,68348.0,68347.0,0.27954046]
[1729867519741,0.14635,68348.0,68347.0,0.27954046]
[1729867520011,4e-05,68348.0,68347.0,0.27954046]
[1729867520918,4e-05,68348.0,68347.0,0.28036546]
[1729867521158,4e-05,68348.0,68347.0,0.28329129]
[1729867521399,0.00169,68348.0,68347.0,0.28329129]
[1729867521647,0.00169,68348.0,68347.0,0.60152771]
[1729867521889,0.00169,68348.0,68347.0,0.59860188]
[1729867522128,0.00169,68348.0,68347.0,0.42667746]
[1729867522631,0.00169,68348.0,68347.0,0.59860188]
[1729867522850,0.00169,68348.0,68347.0,0.74910569]
[1729867523069,0.00169,68348.0,68347.0,0.75410569]
[1729867525207,0.00169,68348.0,68347.0,0.58218127]
[1729867525893,0.00169,68348.0,68347.0,0.75610569]
[1729867526137,4e-05,68353.0,68352.0,0.151301]
[1729867526395,4e-05,68353.0,68352.0,0.41436437]
[1729867527771,4e-05,68353.0,68352.0,0.41393773]
[1729867528914,0.001652,68372.0,68371.0,0.15839673]
[1729867529139,0.001652,68372.0,68371.0,0.75464925]
[1729867529363,0.001652,68372.0,68371.0,0.46169112]
[1729867529585,0.001652,68372.0,68371.0,0.2747667]
[1729867529822,0.14791,68372.0,68371.0,0.2747667]
[1729867530041,0.001652,68372.0,68371.0,0.2747667]
[1729867530322,0.14791,68372.0,68371.0,0.27019334]
[1729867530539,0.14791,68372.0,68371.0,0.26803673]
[1729867530782,0.001652,68372.0,68371.0,0.26803673]
[1729867531930,0.001652,68372.0,68371.0,0.43996115]
[1729867532369,0.001652,68372.0,68371.0,0.58622115]
[1729867532603,0.001652,68372.0,68371.0,0.43996115]
[1729867532852,0.001652,68372.0,68371.0,0.58622115]
[1729867533075,0.001652,68372.0,68371.0,0.43996115]
[1729867533959,0.001652,68372.0,68371.0,0.58622115]
[1729867534437,0.001652,68372.0,68371.0,0.43996115]
[1729867534660,0.001652,68372.0,68371.0,0.59122115]
[1729867534889,0.001652,68372.0,68371.0,0.44496115]
[1729867535348,0.001652,68372.0,68371.0,0.59122115]
[1729867536042,0.001652,68372.0,68371.0,0.44496115]
[1729867536747,0.001652,68372.0,68371.0,0.59122115]
[1729867537415,0.001652,68372.0,68371.0,0.44496115]
[1729867537869,0.001652,68372.0,68371.0,0.59122115]
[1729867538575,0.001652,68372.0,68371.0,0.75172496]
[1729867538805,0.001652,68372.0,68371.0,0.75372496]
[1729867539063,0.001658,68386.0,68380.0,0.61080215]
[1729867539299,0.001658,68386.0,68380.0,0.28763673]
[1729867539533,0.001658,68386.0,68380.0,0.42887773]
[1729867539770,0.001658,68386.0,68380.0,0.28263673]
[1729867539997,0.001658,68386.0,68380.0,0.42887773]
[1729867540236,0.001658,68386.0,68380.0,0.28263673]
[1729867540475,0.001658,68386.0,68380.0,0.42887773]
[1729867541232,0.001658,68386.0,68380.0,0.28263673]
[1729867541469,0.001658,68386.0,68380.0,0.42887773]
[1729867541700,0.001658,68386.0,68380.0,0.28263673]
[1729867541919,0.147891,68381.0,68380.0,0.27763673]
[1729867542141,0.147891,68381.0,68380.0,0.00256337]
[1729867542602,0.147891,68381.0,68380.0,0.00713673]
[1729867543079,0.001652,68381.0,68380.0,0.00713673]
[1729867543812,0.001652,68381.0,68380.0,0.14837773]
[1729867544053,0.001652,68381.0,68380.0,0.42680206]
[1729867544306,0.001652,68381.0,68380.0,0.42387773]
[1729867544534,0.001652,68381.0,68380.0,0.27763673]
[1729867544973,0.001652,68381.0,68380.0,0.42387773]
[1729867545215,0.001652,68381.0,68380.0,0.27763673]
[1729867545440,0.001652,68381.0,68380.0,0.42387773]
[1729867547496,0.001652,68381.0,68380.0,0.42587773]
[1729867547713,0.001652,68381.0,68380.0,0.43387773]
[1729867549554,0.001652,68381.0,68380.0,0.28263673]
[1729867550012,0.001652,68381.0,68380.0,0.27763673]
[1729867550241,0.001652,68381.0,68380.0,0.42887773]
[1729867550951,0.001652,68381.0,68380.0,0.27763673]
[1729867551600,0.147891,68381.0,68380.0,0.08203673]
[1729867552027,0.001652,68381.0,68380.0,0.08203673]
[1729867552239,0.147891,68381.0,68380.0,0.08203673]
[1729867552682,0.001652,68381.0,68380.0,0.08203673]
[1729867553158,0.001652,68381.0,68380.0,0.08496123]
[1729867554081,0.001652,68381.0,68380.0,0.08203673]
[1729867554323,0.001652,68381.0,68380.0,0.23120211]
[1729867554566,0.001652,68381.0,68380.0,0.08203673]
[1729867554821,0.147891,68381.0,68380.0,0.08203673]
[1729867555053,0.001652,68381.0,68380.0,0.08203673]
[1729867555278,0.147891,68381.0,68380.0,0.08203673]
[1729867555950,0.001652,68381.0,68380.0,0.08203673]
[1729867556251,0.147891,68381.0,68380.0,0.08203673]
[1729867556917,0.147891,68381.0,68380.0,0.00213673]
[1729867557352,0.001652,68381.0,68380.0,0.00213673]
[1729867557805,0.31981542,68381.0,68380.0,0.00213673]
[1729867558028,0.31981542,68381.0,68380.0,0.00296073]
[1729867558250,0.83288499,68381.0,68380.0,0.000824]
[1729867558475,0.76810692,68381.0,68380.0,0.000824]
[1729867558734,0.5961825,68381.0,68380.0,0.000824]
[1729867558968,0.31819142,68368.0,68367.0,0.000825]
[1729867559185,0.46869523,68368.0,68367.0,0.000825]
[1729867559892,0.31819142,68368.0,68367.0,0.000825]
[1729867560327,0.04357979,68380.0,68376.0,0.00213673]
[1729867560549,0.001652,68381.0,68380.0,0.00213673]
[1729867561436,0.001652,68381.0,68380.0,0.14837773]
[1729867561669,0.001652,68381.0,68380.0,0.00213673]
[1729867563978,0.001652,68381.0,68380.0,0.15130222]
[1729867564465,0.001652,68381.0,68380.0,0.00213673]
[1729867564703,0.147891,68381.0,68380.0,0.00213673]
[1729867566649,0.147891,68381.0,68365.0,0.292544]
[1729867566650,0.15215581,68381.0,68372.0,0.00213673]
[1729867566878,0.17192442,68373.0,68371.0,0.22022066]
[1729867567122,0.146267,68368.0,68367.0,0.000825]
[1729867567339,0.31819142,68368.0,68367.0,0.000825]
[1729867567559,0.46869523,68368.0,68367.0,0.000825]
[1729867568043,0.6123314,68368.0,68367.0,0.000825]
[1729867568267,0.56869523,68368.0,68367.0,0.000825]
[1729867568473,0.66001276,68368.0,68367.0,0.000825]
[1729867568682,0.42648292,68368.0,68367.0,0.000825]
[1729867568943,0.57274992,68368.0,68367.0,0.000825]
[1729867570710,0.63830777,68368.0,68367.0,0.000825]
[1729867571160,0.73404207,68368.0,68367.0,0.000825]
[1729867571391,0.73604207,68368.0,68367.0,0.000825]
[1729867571608,0.73404207,68368.0,68367.0,0.000825]
[1729867572068,0.59014084,68356.0,68355.0,0.22022066]
[1729867572273,0.74064465,68356.0,68355.0,0.22022066]
[1729867572497,0.146307,68349.0,68348.0,0.22022066]
[1729867572723,0.46873523,68349.0,68348.0,0.22022066]
[1729867572952,0.24631,68348.0,68347.0,0.000825]
[1729867573165,0.39681381,68348.0,68347.0,0.000825]
[1729867573841,0.42267708,68348.0,68347.0,0.000825]
[1729867574740,0.54295321,68348.0,68347.0,0.000825]
[1729867574951,0.54295321,68348.0,68334.0,0.22022066]
[1729867574952,0.31826142,68335.0,68334.0,0.22022066]
[1729867575175,0.74068965,68335.0,68334.0,0.22022066]
[1729867575404,0.146352,68328.0,68327.0,0.22022066]
[1729867575619,0.56878023,68328.0,68327.0,0.22022066]
[1729867575852,0.146367,68321.0,68320.0,0.29732066]
[1729867576064,0.146367,68321.0,68318.0,0.00213673]
[1729867576065,0.146372,68319.0,68318.0,0.00213673]
[1729867577012,0.146385,68313.0,68312.0,0.19883673]
[1729867577978,0.146385,68313.0,68312.0,0.00213673]
[1729867578429,0.39657828,68313.0,68312.0,0.00213673]
[1729867578886,0.146387,68312.0,68311.0,0.00296473]
[1729867579437,0.39689081,68312.0,68311.0,0.000828]
[1729867579651,0.64708409,68312.0,68311.0,0.000828]
[1729867579878,0.67008409,68312.0,68311.0,0.000828]
[1729867580160,0.41989081,68312.0,68311.0,0.000828]
[1729867580827,0.41989081,68312.0,68311.0,0.00115432]
[1729867583529,0.002,68305.0,68298.0,0.000828]
[1729867583752,0.49660828,68299.0,68298.0,0.000828]
[1729867584477,0.52247155,68299.0,68298.0,0.000828]
[1729867587030,0.67297536,68299.0,68298.0,0.000828]
[1729867587268,0.64711209,68299.0,68298.0,0.000828]
[1729867587491,0.49660828,68299.0,68298.0,0.000828]
[1729867587709,0.246415,68299.0,68298.0,0.000828]
[1729867587930,0.49660828,68299.0,68298.0,0.000828]
[1729867588883,0.292817,68302.0,68300.0,0.00213673]
[1729867589111,0.14641,68301.0,68300.0,0.00213673]
[1729867590939,4e-05,68302.0,68301.0,0.00213673]
[1729867591184,4e-05,68302.0,68301.0,0.19223673]
[1729867591423,4e-05,68302.0,68301.0,0.19911609]
[1729867592572,4e-05,68302.0,68301.0,0.27841609]
[1729867593754,0.146448,68302.0,68301.0,0.27841609]
[1729867594197,4e-05,68302.0,68301.0,0.27841609]
[1729867594671,0.39695181,68302.0,68301.0,0.00687936]
[1729867594946,0.39695181,68302.0,68300.0,0.000825]
[1729867594947,0.24641,68301.0,68300.0,0.000825]
[1729867595182,0.39691381,68301.0,68300.0,0.000825]
[1729867595634,0.64710709,68301.0,68300.0,0.000825]
[1729867596980,0.67010709,68301.0,68300.0,0.000825]
[1729867597417,0.67297036,68301.0,68300.0,0.000825]
[1729867599428,0.39691381,68301.0,68300.0,0.000825]
[1729867600340,0.72659101,68301.0,68300.0,0.000825]
[1729867600553,0.39691381,68301.0,68300.0,0.000825]
[1729867600769,0.4112486,68301.0,68300.0,0.00296173]
[1729867601053,4e-05,68302.0,68301.0,0.00213673]
[1729867601330,0.1648786,68302.0,68301.0,0.00213673]
[1729867601611,0.3112866,68302.0,68301.0,0.00900474]
[1729867601798,0.1648786,68302.0,68301.0,0.00900474]
[1729867602027,4e-05,68302.0,68301.0,0.00900474]
[1729867602310,0.3112866,68302.0,68301.0,0.00900474]
[1729867602952,4e-05,68302.0,68301.0,0.00213673]
[1729867603169,4e-05,68302.0,68301.0,0.00900474]
[1729867603842,0.3112866,68302.0,68301.0,0.00900474]
[1729867604283,0.1648786,68302.0,68301.0,0.00900474]
[1729867604501,0.3112866,68302.0,68301.0,0.00900474]
[1729867605409,0.1648786,68302.0,68301.0,0.00900474]
[1729867605846,4e-05,68302.0,68301.0,0.00900474]
[1729867606302,4e-05,68302.0,68301.0,0.01193274]
[1729867606528,4e-05,68302.0,68301.0,0.00900474]
[1729867606754,4e-05,68302.0,68301.0,0.15541474]
[1729867606984,4e-05,68302.0,68301.0,0.34321474]
[1729867607450,0.01523373,68324.0,68310.0,0.14852773]
[1729867607937,0.16159473,68324.0,68310.0,0.57563154]
[1729867607941,0.292715,68326.0,68310.0,0.57563154]
[1729867608156,0.292702,68329.0,68326.0,0.2686]
[1729867608157,0.146355,68327.0,68326.0,0.2686]
[1729867608375,0.22022066,68327.0,68326.0,0.2686]
[1729867608602,0.36657566,68327.0,68326.0,0.2758875]
[1729867608847,0.3111936,68327.0,68326.0,0.2686]
[1729867609054,0.3111936,68327.0,68326.0,0.2758875]
[1729867609939,0.4111936,68327.0,68326.0,0.2758875]
[1729867610406,0.64699119,68327.0,68326.0,0.0072875]
[1729867610852,0.64699119,68327.0,68316.0,0.19893673]
[1729867610853,0.146376,68317.0,68316.0,0.19893673]
[1729867614023,0.54287838,68319.0,68316.0,0.19893673]
[1729867614317,0.439115,68320.0,68316.0,0.19893673]
[1729867614506,0.146365,68323.0,68317.0,0.0071837]
[1729867614746,0.22022066,68324.0,68321.0,0.00213673]
[1729867614978,0.146365,68322.0,68321.0,0.00213673]
[1729867616079,0.146378,68316.0,68315.0,0.00213673]
[1729867616735,0.146385,68313.0,68312.0,0.00213673]
[1729867617168,0.292766,68314.0,68312.0,0.00213673]
[1729867617607,0.292759,68316.0,68312.0,0.00213673]
[1729867617824,0.292745,68319.0,68312.0,0.00213673]
[1729867618071,0.146378,68317.0,68312.0,0.00213673]
[1729867618295,0.1,68326.0,68325.0,0.00213673]
[1729867618537,0.146357,68326.0,68325.0,0.00213673]
[1729867618751,0.292739,68330.0,68325.0,0.00213673]
[1729867618752,0.292702,68329.0,68325.0,0.00213673]
[1729867618970,4e-05,68330.0,68325.0,0.00213673]
[1729867619211,4e-05,68330.0,68329.0,0.00213673]
[1729867620127,0.146388,68330.0,68329.0,0.00213673]
[1729867620591,4e-05,68330.0,68329.0,0.00213673]
[1729867621049,0.146388,68330.0,68329.0,0.00213673]
[1729867622000,4e-05,68330.0,68329.0,0.00213673]
[1729867622929,0.146388,68330.0,68329.0,0.00213673]
[1729867623466,0.146361,68324.0,68323.0,0.27273673]
[1729867623714,4e-05,68330.0,68329.0,0.00213673]
[1729867624628,4e-05,68330.0,68329.0,0.00506344]
[1729867624837,4e-05,68330.0,68329.0,0.00213673]
[1729867625075,4e-05,68330.0,68329.0,0.42998673]
[1729867625543,4e-05,68330.0,68329.0,0.43643302]
[1729867626245,4e-05,68330.0,68329.0,0.28508302]
[1729867626699,4e-05,68330.0,68329.0,0.43143302]
[1729867627183,4e-05,68330.0,68329.0,0.28508302]
[1729867628083,0.146388,68330.0,68329.0,0.28508302]
[1729867628608,4e-05,68330.0,68329.0,0.27863673]
[1729867628857,0.146388,68330.0,68329.0,0.2765]
[1729867629074,4e-05,68330.0,68325.0,0.00213673]
[1729867629294,0.146359,68325.0,68324.0,0.00213673]
[1729867629543,0.25013238,68326.0,68324.0,0.00213673]
[1729867629762,0.294388,68330.0,68324.0,0.00213673]
[1729867629993,0.146359,68325.0,68324.0,0.00213673]
[1729867630228,0.146355,68327.0,68324.0,0.00213673]
[1729867630455,0.146359,68325.0,68324.0,0.00213673]
[1729867631630,0.292712,68327.0,68324.0,0.00213673]
[1729867631850,0.146359,68325.0,68324.0,0.00213673]
[1729867632320,0.14635,68329.0,68324.0,0.00213673]
[1729867632560,0.00169,68330.0,68324.0,0.00213673]
[1729867632780,0.00169,68330.0,68329.0,0.27693673]
[1729867633738,0.148038,68330.0,68329.0,0.27693673]
[1729867634212,0.148038,68330.0,68329.0,0.27715485]
[1729867634648,0.148038,68330.0,68329.0,0.00235485]
[1729867635373,0.148038,68330.0,68329.0,0.00021812]
[1729867636292,0.148038,68330.0,68329.0,0.00235485]
[1729867636522,0.148038,68330.0,68329.0,0.00021812]
[1729867636734,0.29854181,68330.0,68329.0,0.00021812]
[1729867639155,0.148038,68330.0,68329.0,0.00235485]
[1729867639375,0.29854181,68330.0,68329.0,0.00021812]
[1729867639609,0.58616427,68330.0,68329.0,0.00021812]
[1729867640061,0.42154181,68330.0,68329.0,0.00021812]
[1729867640418,0.59102754,68330.0,68329.0,0.00021812]
[1729867640627,0.14638,68315.0,68314.0,0.22022066]
[1729867640841,0.58450627,68315.0,68314.0,0.22022066]
[1729867641054,0.146387,68312.0,68311.0,0.000825]
[1729867641264,0.29689081,68312.0,68311.0,0.000825]
[1729867645847,0.29689081,68312.0,68311.0,0.00296173]
[1729867645848,0.146387,68312.0,68311.0,0.00296173]
[1729867650778,0.39689081,68312.0,68311.0,0.000825]
[1729867653388,0.246387,68312.0,68311.0,0.000825]
[1729867653590,0.246387,68312.0,68311.0,0.00296173]
[1729867654288,0.146387,68312.0,68311.0,0.07956173]
[1729867654501,0.02482082,68341.0,68319.0,0.1881]
[1729867654713,0.02482082,68341.0,68329.0,0.00213673]
[1729867654714,0.16332392,68330.0,68329.0,0.00213673]
[1729867655161,0.148038,68330.0,68329.0,0.00213673]
[1729867655848,0.248038,68330.0,68329.0,0.08313673]
[1729867657395,0.248038,68330.0,68329.0,0.081]
[1729867657625,0.248038,68330.0,68329.0,0.08313673]
[1729867658999,0.248038,68330.0,68329.0,0.081]
[1729867659227,0.248038,68330.0,68329.0,0.08313673]
[1729867659457,0.248038,68330.0,68329.0,0.081]
[1729867659675,0.248038,68330.0,68326.0,0.00213673]
[1729867659676,0.246355,68327.0,68326.0,0.00213673]
[1729867659901,0.146363,68323.0,68322.0,0.08283673]
[1729867660124,0.246367,68321.0,68320.0,0.00213673]
[1729867660341,0.24637,68320.0,68319.0,0.00213673]
[1729867660596,0.24637,68320.0,68310.0,0.268225]
[1729867660597,0.146385,68313.0,68312.0,0.00213673]
[1729867661697,0.146385,68313.0,68311.0,0.000825]
[1729867661698,0.246387,68312.0,68311.0,0.000825]
[1729867661941,0.39689081,68312.0,68311.0,0.000825]
[1729867662880,0.02586327,68310.0,68297.0,0.22318439]
[1729867663125,0.44812627,68312.0,68300.0,0.00296173]
[1729867663126,0.31103246,68301.0,68300.0,0.00296173]
[1729867663586,0.06558838,68307.0,68306.0,0.00213673]
[1729867663587,0.439193,68307.0,68306.0,0.00213673]
[1729867665229,0.58969681,68307.0,68306.0,0.00213673]
[1729867666400,0.24641,68301.0,68300.0,0.000825]
[1729867666666,0.72615873,68301.0,68300.0,0.000825]
[1729867667355,0.79283321,68301.0,68300.0,0.000825]
[1729867667601,0.91032239,68301.0,68300.0,0.000825]
[1729867667821,1.0354228,68301.0,68300.0,0.000825]
[1729867668048,0.91792381,68301.0,68300.0,0.000825]
[1729867668263,0.87425914,68301.0,68300.0,0.000825]
[1729867669427,0.91786975,68301.0,68300.0,0.000825]
[1729867669642,0.87425914,68301.0,68300.0,0.000825]
[1729867669854,0.79276934,68301.0,68300.0,0.000825]
[1729867670084,0.74915873,68301.0,68300.0,0.000825]
[1729867670330,0.79276934,68301.0,68300.0,0.000825]
[1729867670546,0.74915873,68301.0,68300.0,0.000825]
[1729867671022,0.79276934,68301.0,68300.0,0.000825]
[1729867671237,0.74915873,68301.0,68300.0,0.000825]
[1729867673207,0.79276934,68301.0,68300.0,0.000825]
[1729867673474,0.00286327,68300.0,68298.0,0.000828]
[1729867673671,0.00286327,68300.0,68287.0,0.08133673]
[1729867673672,0.246432,68291.0,68290.0,0.22022066]
[1729867673888,0.39693581,68291.0,68290.0,0.22022066]
[1729867674097,0.246432,68291.0,68290.0,0.00213673]
[1729867675204,0.41105446,68291.0,68290.0,0.00213673]
[1729867676972,0.292839,68297.0,68287.0,0.0792]
[1729867676973,0.439263,68296.0,68295.0,0.18933673]
[1729867677181,0.439263,68296.0,68295.0,0.27053673]
[1729867678053,0.60388546,68296.0,68295.0,0.27053673]
[1729867678527,0.31104346,68296.0,68295.0,0.27053673]
[1729867678719,0.292816,68303.0,68299.0,0.08293673]
[1729867678928,0.36663266,68300.0,68299.0,0.08293673]
[1729867679148,0.146412,68300.0,68299.0,0.08293673]
[1729867680260,0.16462246,68301.0,68299.0,0.08293673]
[1729867680474,0.146412,68300.0,68299.0,0.08293673]
[1729867682482,0.00165,68310.0,68294.0,0.005]
[1729867682483,0.146395,68308.0,68307.0,0.07733673]
[1729867682737,0.36661566,68308.0,68307.0,0.07733673]
[1729867682960,0.146395,68308.0,68307.0,0.07733673]
[1729867683401,0.00165,68310.0,68309.0,0.00213673]
[1729867683666,0.00165,68310.0,68309.0,0.23165728]
[1729867683923,0.00165,68310.0,68309.0,0.42375728]
[1729867684138,0.00165,68310.0,68309.0,0.42082973]
[1729867684427,0.146369,68321.0,68320.0,0.00213673]
[1729867684657,0.292723,68324.0,68317.0,0.151375]
[1729867684658,0.292723,68324.0,68323.0,0.00213673]
[1729867684866,0.439084,68324.0,68323.0,0.00213673]
[1729867687067,0.146361,68324.0,68323.0,0.00213673]
[1729867687293,0.146361,68324.0,68323.0,0.08323673]
[1729867687967,0.70368746,68327.0,68326.0,0.00213673]
[1729867689504,0.55733246,68327.0,68323.0,0.0811]
[1729867689784,0.146361,68324.0,68323.0,0.08323673]
[1729867691815,0.292731,68323.0,68318.0,0.1921]
[1729867692031,0.292731,68323.0,68307.0,0.22522066]
[1729867692032,0.246374,68318.0,68317.0,0.00213673]
[1729867692448,0.539123,68318.0,68317.0,0.00213673]
[1729867693768,0.146378,68316.0,68315.0,0.00213673]
[1729867693976,0.31100046,68316.0,68315.0,0.00213673]
[1729867695122,0.14638,68315.0,68314.0,0.00213673]
[1729867695363,0.392783,68310.0,68308.0,0.00213673]
[1729867695615,0.246393,68309.0,68308.0,0.00213673]
[1729867695842,0.1,68306.0,68301.0,0.00213673]
[1729867696076,0.1,68306.0,68298.0,0.30262066]
[1729867696077,0.146406,68303.0,68302.0,0.00213673]
[1729867696502,0.31102846,68303.0,68302.0,0.00213673]
[1729867697617,0.146408,68302.0,68301.0,0.00213673]
[1729867697824,0.31103046,68302.0,68301.0,0.00213673]
[1729867698499,0.292782,68310.0,68305.0,0.00213673]
[1729867698718,0.439148,68314.0,68313.0,0.00213673]
[1729867698934,0.60377046,68314.0,68313.0,0.00213673]
[1729867699360,0.60377046,68314.0,68311.0,0.00213673]
[1729867699594,0.31100946,68312.0,68311.0,0.00213673]
[1729867700287,0.246389,68311.0,68310.0,0.000825]
[1729867701425,0.41989281,68311.0,68310.0,0.000825]
[1729867704031,0.66841622,68311.0,68310.0,0.000825]
[1729867704243,0.39689281,68311.0,68310.0,0.000825]
[1729867704534,0.44056203,68311.0,68310.0,0.000825]
[1729867704754,0.246389,68311.0,68310.0,0.08336173]